fUSD/lending_fUSD_20250503
["ID","MTS","AMOUNT","RATE_DAILY","PERIOD"]
[359758331,1746304247048,-537.04648005,0.00019999,2]
[359758332,1746304247058,-366.20032378,0.00019999,2]
[359758333,1746304247069,-670.50530287,0.00019999,2]
[359758334,1746304247078,-300.0,0.00019999,2]
[359758335,1746304247087,-2000.0,0.00019999,2]
[359758336,1746304247097,-56807.51,0.00019999,2]
[359758337,1746304247106,-212.03805716,0.00019999,2]
[359758338,1746304247116,-500.0,0.00019999,2]
[359758339,1746304247125,-503.31962313,0.00019999,2]
[359758340,1746304247135,-1000.0,0.00019999,2]
[359758341,1746304247145,-1000.0,0.00019999,2]
[359758342,1746304247154,-1000.0,0.00019999,2]
[359758343,1746304247163,-1000.0,0.00019999,2]
[359758344,1746304247173,-1000.0,0.00019999,2]
[359758345,1746304247182,-1000.0,0.00019999,2]
[359758346,1746304247192,-1000.0,0.00019999,2]
[359758347,1746304247201,-1000.0,0.00019999,2]
[359758348,1746304247211,-1000.0,0.00019999,2]
[359758349,1746304247221,-539.61120459,0.00019999,2]
[359758350,1746304247230,-481.69,0.00019999,2]
[359758351,1746304247240,-1144.34345938,0.00019999,2]
[359758352,1746304247250,-66823.38330018,0.00019999,2]
[359758353,1746304247259,-18723.24018654,0.00019999,2]
[359758354,1746304247268,-521.49175367,0.0002,2]
[359758355,1746304247277,-2454829.31721718,0.0002,2]
[359758356,1746304247287,-1268684.23696143,0.0002,2]
[359758357,1746304247605,-2587.64247345,0.0002,2]
[359758358,1746304247649,-1497.7826597,0.0002,2]
[359758359,1746304247819,-813.16188863,0.00019766,2]
[359758360,1746304247828,-877.0,0.00019949,2]
[359758361,1746304247837,-37937.29144636,0.0002,2]
[359758362,1746304248171,-813.16188861,0.00019826,2]
[359758363,1746304248180,-5846.57916139,0.0002,2]
[359758364,1746304248233,-568.82267742,0.0002,2]
[359758365,1746304248245,-1924.0,0.0002,2]
[359758366,1746304248260,-14466.75,0.0002,2]
[359758367,1746304248275,-4211.29840756,0.0002,2]
[359758368,1746304261697,300.0,0.00027397,30]
[359758369,1746304366666,3054.93258235,0.00019,2]
[359758371,1746304385367,1649.59541145,0.00019927,7]
[359758372,1746304494805,1000.0,0.00018776,2]
[359758373,1746304593490,2816.5886,0.00019492,2]
[359758374,1746304620162,170.17954053,0.00019492,2]
[359758375,1746304667313,7972.94687169,0.00019491,2]
[359758376,1746304682907,644.94,0.00016844,2]
[359758377,1746304683133,644.94,0.00019108,2]
[359758378,1746304690277,166.78,0.00015276,2]
[359758379,1746304730580,800.0,0.00032876,60]
[359758382,1746304789346,4639.5479,0.00019492,2]
[359758383,1746304810035,1319.9148,0.00019491,2]
[359758384,1746304826260,170.17954058,0.00019492,2]
[359758385,1746304839369,500.0,0.00032876,60]
[359758386,1746304898331,2541.91938634,0.00019491,2]
[359758387,1746304988620,199.70928448,0.00019492,2]
[359758388,1746304991676,11893.518,0.00019491,2]
[359758389,1746305156193,26807.5033,0.00019491,2]
[359758390,1746305233731,173.77,0.00019178,2]
[359758391,1746305237850,7175.65218444,0.00019491,2]
[359758392,1746305284799,2287.72744767,0.00019491,2]
[359758393,1746305309648,250.0,0.00017,2]
[359758394,1746305310731,300.0,0.00019,2]
[359758395,1746305339027,179.73835605,0.00019492,2]
[359758403,1746305419908,150.050405,0.0003,30]
[359758404,1746305425902,150.050405,0.0003,31]
[359758405,1746305428690,150.050405,0.0003,32]
[359758469,1746305432932,-300.0,0.00019535,2]
[359758470,1746305432942,-1200.0,0.00019535,2]
[359758471,1746305432951,-300.0,0.00019535,2]
[359758472,1746305432959,-227.76,0.00019535,2]
[359758477,1746305433053,150.050405,0.0003,33]
[359758495,1746305433178,-22.24,0.00019535,2]
[359758497,1746305433188,-6132.6169412,0.00019536,2]
[359758680,1746305437219,150.050405,0.0003,34]
[359758684,1746305438399,-282.6119774,0.00019536,2]
[359758864,1746305440316,-268.70833784,0.00019536,2]
[359758866,1746305440328,-491.714928,0.00019536,2]
[359758868,1746305440337,-2287.72744762,0.00019536,2]
[359758870,1746305440346,-179.73835598,0.00019537,2]
[359758872,1746305440355,-200.0,0.00019545,2]
[359758874,1746305440365,-200.0,0.00019554,2]
[359758876,1746305440374,-200.0,0.00019565,2]
[359758878,1746305440383,-189.76331,0.00019572,2]
[359758880,1746305440392,-187.323863,0.00019572,2]
[359758882,1746305440402,-207.4,0.00019576,2]
[359758884,1746305440412,-151.0,0.00019579,2]
[359758886,1746305440421,-668.65185757,0.00019579,2]
[359758888,1746305440430,-151.0,0.00019579,2]
[359758890,1746305440439,-6667.99907103,0.0001958,2]
[359758892,1746305440449,-7175.65218444,0.00019582,2]
[359758894,1746305440458,-2287.72744762,0.00019582,2]
[359758896,1746305440467,-179.73835598,0.00019583,2]
[359758898,1746305440476,-3069.4735389,0.0001959,3]
[359758900,1746305440485,-450.0,0.0001959,2]
[359758902,1746305440494,-450.0,0.0001959,2]
[359758904,1746305440503,-450.0,0.0001959,2]
[359758906,1746305440512,-450.0,0.0001959,2]
[359758908,1746305440521,-250.0,0.0001959,2]
[359758909,1746305440530,-450.0,0.0001959,2]
[359758911,1746305440539,-450.0,0.0001959,2]
[359758913,1746305440548,-450.0,0.0001959,2]
[359758915,1746305440557,-450.0,0.0001959,2]
[359758917,1746305440568,-450.0,0.0001959,2]
[359758919,1746305440577,-450.0,0.0001959,2]
[359758921,1746305440586,-450.0,0.0001959,2]
[359758923,1746305440595,-500.0,0.0001959,2]
[359758925,1746305440605,-980.03,0.0001959,2]
[359758927,1746305440613,-450.0,0.0001959,2]
[359758929,1746305440622,-450.0,0.0001959,2]
[359758931,1746305440631,-450.0,0.0001959,2]
[359758933,1746305440641,-450.0,0.0001959,2]
[359758935,1746305440650,-450.0,0.0001959,2]
[359758937,1746305440659,-450.0,0.0001959,2]
[359758939,1746305440668,-450.0,0.0001959,2]
[359758941,1746305440677,-450.0,0.0001959,2]
[359758943,1746305440686,-450.0,0.0001959,2]
[359758945,1746305440695,-450.0,0.0001959,2]
[359758947,1746305440704,-450.0,0.0001959,2]
[359758949,1746305440713,-450.0,0.0001959,2]
[359758951,1746305440722,-450.0,0.0001959,2]
[359758953,1746305440732,-582.61,0.0001959,2]
[359758955,1746305440741,-450.0,0.0001959,2]
[359758957,1746305440750,-1051.55,0.0001959,2]
[359758959,1746305440762,-450.0,0.0001959,2]
[359758961,1746305440772,-450.0,0.0001959,2]
[359758963,1746305440780,-450.0,0.0001959,2]
[359758965,1746305440790,-450.0,0.0001959,2]
[359758967,1746305440799,-553.3,0.0001959,2]
[359758969,1746305440808,-500.0,0.0001959,2]
[359758971,1746305440817,-450.0,0.0001959,2]
[359758973,1746305440826,-997.22,0.0001959,2]
[359758975,1746305440835,-450.0,0.0001959,2]
[359758976,1746305440844,-616.86,0.0001959,2]
[359758978,1746305440854,-450.0,0.0001959,2]
[359758980,1746305440863,-472.88,0.0001959,2]
[359758982,1746305440872,-1309.88,0.0001959,2]
[359758984,1746305440881,-450.0,0.0001959,2]
[359758986,1746305440890,-450.0,0.0001959,2]
[359758988,1746305440899,-450.0,0.0001959,2]
[359758990,1746305440909,-450.0,0.0001959,2]
[359758992,1746305440918,-450.0,0.0001959,2]
[359758994,1746305440927,-450.0,0.0001959,2]
[359758996,1746305440936,-450.0,0.0001959,2]
[359758998,1746305440945,-450.0,0.0001959,2]
[359759000,1746305440955,-450.0,0.0001959,2]
[359759002,1746305440963,-450.0,0.0001959,2]
[359759004,1746305440972,-450.0,0.0001959,2]
[359759005,1746305440981,-450.0,0.0001959,2]
[359759007,1746305440990,-4874.34,0.0001959,2]
[359759009,1746305440999,-690.18,0.0001959,2]
[359759011,1746305441008,-450.0,0.0001959,2]
[359759013,1746305441017,-450.0,0.0001959,2]
[359759015,1746305441030,-450.0,0.0001959,2]
[359759017,1746305441039,-450.0,0.0001959,2]
[359759019,1746305441048,-450.0,0.0001959,2]
[359759021,1746305441057,-514.0,0.0001959,2]
[359759023,1746305441067,-450.0,0.0001959,2]
[359759025,1746305441077,-450.0,0.0001959,2]
[359759027,1746305441087,-450.0,0.0001959,2]
[359759029,1746305441096,-450.0,0.0001959,2]
[359759031,1746305441105,-450.0,0.0001959,2]
[359759033,1746305441114,-641.55,0.0001959,2]
[359759035,1746305441124,-83790.55,0.0001959,2]
[359759037,1746305441133,-450.0,0.0001959,2]
[359759039,1746305441143,-450.0,0.0001959,2]
[359759041,1746305441152,-461.0,0.0001959,2]
[359759043,1746305441161,-450.0,0.0001959,2]
[359759045,1746305441170,-450.0,0.0001959,2]
[359759047,1746305441179,-2075.73,0.0001959,2]
[359759049,1746305441188,-450.0,0.0001959,2]
[359759051,1746305441197,-450.0,0.0001959,2]
[359759053,1746305441206,-450.0,0.0001959,2]
[359759055,1746305441215,-450.0,0.0001959,2]
[359759056,1746305441224,-581.40503227,0.0001959,2]
[359759058,1746305441233,-450.0,0.0001959,2]
[359759061,1746305441243,-450.0,0.0001959,2]
[359759062,1746305441252,-773.62,0.0001959,2]
[359759064,1746305441261,-3914.45,0.0001959,2]
[359759066,1746305441271,-639.58,0.0001959,2]
[359759068,1746305441280,-450.0,0.0001959,2]
[359759070,1746305441288,-450.0,0.0001959,2]
[359759072,1746305441298,-450.0,0.0001959,2]
[359759074,1746305441307,-456.88,0.0001959,2]
[359759076,1746305441316,-2551.38,0.0001959,2]
[359759078,1746305441326,-450.0,0.0001959,2]
[359759080,1746305441335,-450.0,0.0001959,2]
[359759082,1746305441344,-450.0,0.0001959,2]
[359759084,1746305441354,-450.0,0.0001959,2]
[359759085,1746305441363,-862.59,0.0001959,2]
[359759087,1746305441373,-450.0,0.0001959,2]
[359759089,1746305441383,-450.0,0.0001959,2]
[359759091,1746305441392,-450.0,0.0001959,2]
[359759093,1746305441401,-450.0,0.0001959,2]
[359759095,1746305441410,-490.86,0.0001959,2]
[359759097,1746305441419,-450.0,0.0001959,2]
[359759099,1746305441429,-450.0,0.00019591,2]
[359759101,1746305441438,-450.0,0.00019591,2]
[359759103,1746305441447,-450.0,0.00019591,2]
[359759105,1746305441456,-450.0,0.00019591,2]
[359759107,1746305441465,-450.0,0.00019591,2]
[359759109,1746305441474,-450.0,0.00019591,2]
[359759111,1746305441483,-450.0,0.00019591,2]
[359759113,1746305441492,-450.0,0.00019591,2]
[359759114,1746305441501,-546.24213029,0.00019591,2]
[359759116,1746305441509,-450.0,0.00019591,2]
[359759118,1746305441520,-450.0,0.00019591,2]
[359759120,1746305441529,-450.0,0.00019591,2]
[359759122,1746305441540,-450.0,0.00019591,2]
[359759124,1746305441550,-167.17367774,0.00019591,2]
[359759126,1746305441559,-561.38599026,0.00019591,2]
[359759128,1746305441569,-519.47554658,0.00019591,2]
[359759130,1746305441579,-511.54468994,0.00019591,2]
[359759132,1746305441588,-450.0,0.00019591,2]
[359759133,1746305441597,-869.18,0.00019591,2]
[359759134,1746305441606,-450.0,0.00019591,2]
[359759135,1746305441615,-450.0,0.00019591,2]
[359759136,1746305441624,-450.0,0.00019591,2]
[359759137,1746305441634,-450.0,0.00019591,2]
[359759138,1746305441643,-314.97,0.00019591,2]
[359759139,1746305441653,-450.0,0.00019591,2]
[359759140,1746305441663,-450.0,0.00019591,2]
[359759141,1746305441672,-591.23,0.00019591,2]
[359759142,1746305441682,-450.0,0.00019591,2]
[359759143,1746305441691,-350.27,0.00019591,2]
[359759144,1746305441700,-159.0,0.00019591,2]
[359759145,1746305441709,-405.49534162,0.00019591,2]
[359759146,1746305441718,-450.0,0.00019591,2]
[359759147,1746305441728,-450.0,0.00019591,2]
[359759148,1746305441737,-450.0,0.00019591,2]
[359759149,1746305441746,-150.0,0.00019591,2]
[359759150,1746305441756,-450.0,0.00019591,2]
[359759151,1746305441768,-422.0,0.00019591,2]
[359759152,1746305441777,-450.0,0.00019591,2]
[359759153,1746305441786,-450.0,0.00019591,2]
[359759154,1746305441795,-150.0,0.00019591,2]
[359759155,1746305441805,-450.0,0.00019591,2]
[359759156,1746305441814,-150.0,0.00019591,2]
[359759157,1746305441824,-150.0,0.00019591,2]
[359759158,1746305441833,-450.0,0.00019591,2]
[359759159,1746305441843,-500.0,0.00019591,2]
[359759160,1746305441853,-587.3,0.00019591,2]
[359759161,1746305441862,-450.0,0.00019591,2]
[359759162,1746305441872,-450.0,0.00019591,2]
[359759163,1746305441882,-450.0,0.00019591,2]
[359759164,1746305441892,-150.0,0.00019591,2]
[359759165,1746305441902,-450.0,0.00019591,2]
[359759166,1746305441911,-450.0,0.00019591,2]
[359759167,1746305441921,-450.0,0.00019591,2]
[359759168,1746305441930,-543.23,0.00019591,2]
[359759169,1746305441940,-497.99,0.00019591,2]
[359759170,1746305441950,-464.37,0.00019591,2]
[359759171,1746305441959,-450.0,0.00019591,2]
[359759172,1746305441969,-450.0,0.00019591,2]
[359759173,1746305441978,-450.0,0.00019591,2]
[359759174,1746305441988,-450.0,0.00019591,2]
[359759175,1746305441998,-889.35,0.00019591,2]
[359759176,1746305442007,-450.0,0.00019591,2]
[359759177,1746305442016,-450.0,0.00019591,2]
[359759178,1746305442031,-450.0,0.00019591,2]
[359759179,1746305442041,-450.0,0.00019591,2]
[359759180,1746305442050,-450.0,0.00019591,2]
[359759181,1746305442059,-450.0,0.00019591,2]
[359759182,1746305442068,-450.0,0.00019591,2]
[359759183,1746305442077,-450.0,0.00019591,2]
[359759184,1746305442086,-450.0,0.00019591,2]
[359759185,1746305442096,-253.62358516,0.00019591,2]
[359759186,1746305442105,-450.0,0.00019591,2]
[359759187,1746305442115,-450.0,0.00019591,2]
[359759188,1746305442125,-450.0,0.00019591,2]
[359759189,1746305442135,-450.0,0.00019591,2]
[359759190,1746305442144,-450.0,0.00019591,2]
[359759191,1746305442153,-450.0,0.00019591,2]
[359759192,1746305442163,-450.0,0.00019591,2]
[359759193,1746305442172,-450.0,0.00019591,2]
[359759194,1746305442182,-450.0,0.00019591,2]
[359759195,1746305442191,-450.0,0.00019591,2]
[359759196,1746305442201,-450.0,0.00019591,2]
[359759197,1746305442210,-450.0,0.00019591,2]
[359759198,1746305442219,-548.94,0.00019591,2]
[359759199,1746305442228,-450.0,0.00019591,2]
[359759200,1746305442238,-450.0,0.00019591,2]
[359759201,1746305442249,-196.3745295,0.00019591,2]
[359759202,1746305442259,-450.0,0.00019591,2]
[359759203,1746305442268,-450.0,0.00019591,2]
[359759204,1746305442278,-450.0,0.00019591,2]
[359759205,1746305442288,-450.0,0.00019591,2]
[359759206,1746305442298,-450.0,0.00019591,2]
[359759207,1746305442308,-150.0,0.00019591,2]
[359759208,1746305442318,-550.25,0.00019591,2]
[359759209,1746305442327,-198.78392716,0.00019591,2]
[359759210,1746305442337,-450.0,0.00019591,2]
[359759211,1746305442347,-150.0,0.00019591,2]
[359759212,1746305442357,-537.08,0.00019591,2]
[359759213,1746305442367,-450.0,0.00019591,2]
[359759214,1746305442376,-450.0,0.00019591,2]
[359759215,1746305442386,-450.0,0.00019591,2]
[359759216,1746305442396,-450.0,0.00019591,2]
[359759217,1746305442406,-450.0,0.00019591,2]
[359759218,1746305442415,-450.0,0.00019591,2]
[359759219,1746305442424,-450.0,0.00019591,2]
[359759220,1746305442433,-558.96235802,0.00019591,2]
[359759221,1746305442443,-450.0,0.00019591,2]
[359759222,1746305442452,-450.0,0.00019591,2]
[359759223,1746305442461,-450.0,0.00019591,2]
[359759224,1746305442470,-450.0,0.00019591,2]
[359759225,1746305442479,-450.0,0.00019591,2]
[359759226,1746305442488,-450.0,0.00019591,2]
[359759227,1746305442498,-450.0,0.00019591,2]
[359759228,1746305442507,-1295.14,0.00019591,2]
[359759229,1746305442516,-450.0,0.00019591,2]
[359759230,1746305442525,-450.0,0.00019591,2]
[359759231,1746305442534,-2032.6,0.00019591,2]
[359759232,1746305442544,-450.0,0.00019591,2]
[359759233,1746305442553,-450.0,0.00019591,2]
[359759234,1746305442562,-404.32921075,0.00019591,2]
[359759235,1746305442571,-450.0,0.00019591,2]
[359759236,1746305442580,-450.0,0.00019591,2]
[359759237,1746305442590,-450.0,0.00019591,2]
[359759238,1746305442599,-578.29,0.00019591,2]
[359759239,1746305442608,-450.0,0.00019591,2]
[359759240,1746305442618,-1760.87,0.00019591,2]
[359759241,1746305442627,-466.67,0.00019591,2]
[359759242,1746305442636,-688.7,0.00019591,2]
[359759243,1746305442645,-594.6,0.00019591,2]
[359759244,1746305442654,-1535.69,0.00019591,2]
[359759245,1746305442663,-450.0,0.00019591,2]
[359759246,1746305442672,-796.94,0.00019591,2]
[359759247,1746305442681,-450.0,0.00019591,2]
[359759248,1746305442690,-577.75,0.00019591,2]
[359759249,1746305442700,-839.08,0.00019591,2]
[359759250,1746305442709,-766.89,0.00019591,2]
[359759251,1746305442718,-450.0,0.00019591,2]
[359759252,1746305442727,-4825.7,0.00019591,2]
[359759253,1746305442736,-2284.18,0.00019591,2]
[359759254,1746305442746,-580.05,0.00019591,2]
[359759255,1746305442755,-473.64,0.00019591,2]
[359759256,1746305442764,-6113.01,0.00019591,2]
[359759257,1746305442773,-450.0,0.00019591,2]
[359759258,1746305442782,-462.01,0.00019591,2]
[359759259,1746305442791,-484.28,0.00019591,2]
[359759260,1746305442801,-3887.84,0.00019591,2]
[359759261,1746305442810,-450.0,0.00019591,2]
[359759262,1746305442819,-450.0,0.00019591,2]
[359759263,1746305442829,-450.0,0.00019591,2]
[359759264,1746305442838,-450.0,0.00019591,2]
[359759265,1746305442847,-450.0,0.00019591,2]
[359759266,1746305442857,-592.63,0.00019591,2]
[359759267,1746305442866,-3979.13,0.00019591,2]
[359759268,1746305442876,-450.0,0.00019591,2]
[359759269,1746305442885,-83991.74,0.00019591,2]
[359759270,1746305442894,-450.0,0.00019591,2]
[359759271,1746305442903,-450.0,0.00019591,2]
[359759272,1746305442913,-1426.84,0.00019591,2]
[359759274,1746305442922,-792.18,0.00019591,2]
[359759275,1746305442931,-1516.22,0.00019591,2]
[359759276,1746305442940,-450.0,0.00019591,2]
[359759277,1746305442949,-500.0,0.00019591,2]
[359759278,1746305442959,-450.0,0.00019591,2]
[359759279,1746305442968,-3626.94,0.00019591,2]
[359759280,1746305442978,-450.0,0.00019591,2]
[359759281,1746305442987,-500.0,0.00019591,2]
[359759282,1746305442996,-450.0,0.00019591,2]
[359759283,1746305443006,-17865.17,0.00019591,2]
[359759284,1746305443015,-450.0,0.00019591,2]
[359759287,1746305443029,-466.62,0.00019591,2]
[359759289,1746305443038,-1228.46,0.00019591,2]
[359759290,1746305443048,-471.26,0.00019591,2]
[359759291,1746305443057,-500.0,0.00019591,2]
[359759292,1746305443067,-450.0,0.00019591,2]
[359759293,1746305443076,-636.65,0.00019591,2]
[359759294,1746305443085,-11176.54,0.00019591,2]
[359759295,1746305443095,-1134.65,0.00019591,2]
[359759296,1746305443104,-476.49,0.00019591,2]
[359759297,1746305443114,-450.0,0.00019591,2]
[359759298,1746305443124,-450.0,0.00019591,2]
[359759299,1746305443133,-450.0,0.00019591,2]
[359759300,1746305443143,-556.88,0.00019591,2]
[359759301,1746305443152,-470.0,0.00019591,2]
[359759302,1746305443162,-450.0,0.00019591,2]
[359759303,1746305443171,-500.0,0.00019591,2]
[359759304,1746305443180,-450.0,0.00019591,2]
[359759305,1746305443190,-792.07,0.00019591,2]
[359759306,1746305443200,-557.94548119,0.00019591,2]
[359759307,1746305443209,-150.0,0.00019591,2]
[359759308,1746305443219,-150.0,0.00019591,2]
[359759309,1746305443228,-150.0,0.00019591,2]
[359759310,1746305443237,-450.0,0.00019591,2]
[359759311,1746305443247,-450.0,0.00019591,2]
[359759312,1746305443257,-450.0,0.00019591,2]
[359759313,1746305443266,-450.0,0.00019591,2]
[359759314,1746305443275,-450.0,0.00019592,2]
[359759315,1746305443284,-540.22183034,0.00019592,2]
[359759316,1746305443294,-465.89,0.00019592,2]
[359759317,1746305443303,-450.0,0.00019592,2]
[359759318,1746305443312,-450.0,0.00019592,2]
[359759319,1746305443322,-194.53251863,0.00019592,2]
[359759320,1746305443332,-450.0,0.00019592,2]
[359759321,1746305443341,-450.0,0.00019592,2]
[359759322,1746305443351,-450.0,0.00019592,2]
[359759323,1746305443360,-450.0,0.00019592,2]
[359759324,1746305443369,-450.0,0.00019592,2]
[359759325,1746305443379,-687.22,0.00019592,2]
[359759326,1746305443388,-450.0,0.00019592,2]
[359759327,1746305443397,-450.0,0.00019592,2]
[359759328,1746305443406,-450.0,0.00019592,2]
[359759329,1746305443415,-450.0,0.00019592,2]
[359759330,1746305443425,-479.20352983,0.00019592,2]
[359759331,1746305443434,-482.04692344,0.00019592,2]
[359759332,1746305443444,-473.97622075,0.00019592,2]
[359759333,1746305443453,-450.0,0.00019592,2]
[359759334,1746305443463,-450.0,0.00019592,2]
[359759335,1746305443473,-450.0,0.00019592,2]
[359759336,1746305443482,-521.43,0.00019592,2]
[359759337,1746305443492,-450.0,0.00019592,2]
[359759338,1746305443501,-450.0,0.00019592,2]
[359759339,1746305443510,-523.20208212,0.00019592,2]
[359759340,1746305443519,-529.54923781,0.00019592,2]
[359759341,1746305443528,-450.0,0.00019592,2]
[359759343,1746305443539,-450.0,0.00019592,2]
[359759344,1746305443548,-564.89707459,0.00019592,2]
[359759345,1746305443558,-510.92426429,0.00019592,2]
[359759346,1746305443567,-450.0,0.00019592,2]
[359759347,1746305443576,-450.0,0.00019592,2]
[359759348,1746305443585,-533.95367948,0.00019592,2]
[359759349,1746305443595,-450.0,0.00019592,2]
[359759350,1746305443604,-450.0,0.00019592,2]
[359759351,1746305443614,-450.0,0.00019592,2]
[359759352,1746305443624,-450.0,0.00019592,2]
[359759353,1746305443633,-450.0,0.00019592,2]
[359759354,1746305443643,-450.0,0.00019592,2]
[359759355,1746305443652,-307.94111165,0.00019592,2]
[359759356,1746305443661,-450.0,0.00019592,2]
[359759357,1746305443671,-450.0,0.00019592,2]
[359759358,1746305443680,-450.0,0.00019592,2]
[359759359,1746305443690,-450.0,0.00019592,2]
[359759360,1746305443699,-500.0,0.00019592,2]
[359759361,1746305443709,-483.42226741,0.00019592,2]
[359759362,1746305443718,-480.61657555,0.00019592,2]
[359759363,1746305443727,-450.0,0.00019592,2]
[359759364,1746305443737,-450.0,0.00019592,2]
[359759365,1746305443747,-185.50934107,0.00019592,2]
[359759366,1746305443756,-475.12,0.00019592,2]
[359759367,1746305443765,-450.0,0.00019592,2]
[359759368,1746305443775,-450.0,0.00019592,2]
[359759369,1746305443784,-564.45,0.00019592,2]
[359759370,1746305443794,-450.0,0.00019592,2]
[359759371,1746305443803,-450.0,0.00019592,2]
[359759372,1746305443812,-450.0,0.00019592,2]
[359759373,1746305443822,-450.0,0.00019592,2]
[359759374,1746305443831,-450.0,0.00019592,2]
[359759375,1746305443842,-450.0,0.00019592,2]
[359759376,1746305443851,-474.32117263,0.00019592,2]
[359759377,1746305443861,-450.0,0.00019592,2]
[359759378,1746305443870,-450.0,0.00019592,2]
[359759379,1746305443879,-869.32,0.00019592,2]
[359759380,1746305443888,-450.0,0.00019592,2]
[359759381,1746305443897,-613.27,0.00019592,2]
[359759382,1746305443907,-450.0,0.00019592,2]
[359759383,1746305443916,-450.0,0.00019592,2]
[359759384,1746305443926,-450.0,0.00019592,2]
[359759385,1746305443937,-450.0,0.00019592,2]
[359759386,1746305443948,-584.92,0.00019592,2]
[359759387,1746305443959,-452.79,0.00019592,2]
[359759388,1746305443969,-450.0,0.00019592,2]
[359759389,1746305443980,-450.0,0.00019592,2]
[359759390,1746305443992,-450.0,0.00019592,2]
[359759391,1746305444004,-450.0,0.00019592,2]
[359759392,1746305444014,-450.0,0.00019592,2]
[359759393,1746305444027,-450.0,0.00019592,2]
[359759394,1746305444036,-532.82,0.00019592,2]
[359759395,1746305444045,-202.6477267,0.00019592,2]
[359759396,1746305444054,-591.08,0.00019592,2]
[359759397,1746305444063,-450.0,0.00019592,2]
[359759398,1746305444072,-614.19,0.00019592,2]
[359759399,1746305444081,-510.62,0.00019592,2]
[359759400,1746305444090,-450.0,0.00019592,2]
[359759401,1746305444099,-450.0,0.00019592,2]
[359759402,1746305444108,-1350.13,0.00019592,2]
[359759403,1746305444118,-450.0,0.00019592,2]
[359759404,1746305444266,-450.0,0.00019592,2]
[359759405,1746305444278,-450.0,0.00019592,2]
[359759406,1746305444288,-484.32,0.00019592,2]
[359759407,1746305444298,-450.0,0.00019592,2]
[359759408,1746305444307,-450.0,0.00019592,2]
[359759409,1746305444317,-450.0,0.00019592,2]
[359759410,1746305444327,-670.58,0.00019592,2]
[359759411,1746305444336,-824.44,0.00019592,2]
[359759412,1746305444346,-529.98,0.00019592,2]
[359759413,1746305444356,-450.0,0.00019592,2]
[359759414,1746305444365,-206.7673008,0.00019592,2]
[359759415,1746305444376,-450.0,0.00019592,2]
[359759416,1746305444385,-450.0,0.00019592,2]
[359759417,1746305444395,-450.0,0.00019592,2]
[359759418,1746305444404,-881.57,0.00019592,2]
[359759419,1746305444413,-470.63,0.00019592,2]
[359759420,1746305444423,-450.0,0.00019592,2]
[359759421,1746305444432,-450.0,0.00019592,2]
[359759422,1746305444442,-450.0,0.00019592,2]
[359759423,1746305444451,-450.0,0.00019592,2]
[359759424,1746305444460,-450.0,0.00019592,2]
[359759425,1746305444471,-450.0,0.00019592,2]